Cogmind - Beta 14 @@@ ROGUE MODE // 2024.11.06 @ 02:55:35 Player: WazdakkaGutsmek Result: Destroyed by S-43 Plague with Heavy Machine Gun Performance ------------- Evolutions (7) 3500 Regions Visited (15) 3000 Robots Destroyed (76) 380 Value Destroyed (2621) 2621 Prototype IDs (39) 780 Alien Tech Used (0) 0 Bonus (1039) 1039 TOTAL SCORE: 11320 Bonus ------- High Alert Combat Kills 68 Follower Combat Kills 371 Aligned with FarCom 300 Met Data Miner 300 Cogmind --------- Core Integrity 0/1300 Matter 220/300 Energy 99/100 System Corruption 9% Temperature Cool (0) Movement Core (50) Location -3/Research Parts ------- > --- POWER (2) -------- (None) > --- PROPULSION (7) --- (None) > --- UTILITY (10) ----- Advanced Target Analyzer > --- WEAPON (2) ------- (None) > --- INVENTORY (5) ---- Antigrav System Layered Light Armor Plating Heavy Rocket Launcher Peak State ------------ > --- POWER ------------ Light Angular Momentum Engine Neutrino Core > --- PROPULSION ------- Improved Gravmag System Antigrav System Cooled Gravmag System Cooled Gravmag System Combat Gravmag System Improved Antigrav System > --- UTILITY ---------- Structural Scanner Advanced Sensor Array Advanced Signal Interpreter Improved Melee Analysis Suite Advanced Melee Analysis Suite Advanced Melee Analysis Suite Improved Medium Armor Plating Advanced Hacking Suite Advanced Hacking Suite > --- WEAPON ----------- Phasing Sabre Phasing Sabre > --- INVENTORY -------- Antigrav System Layered Light Armor Plating Heavy Rocket Launcher Improved Remote Datajack Phasing Sabre [Rating: 104] Favorites ----------- Power Ion Engine Engine Ion Engine Power Core Neutrino Core Reactor Compact Particle Reactor Propulsion Light Treads Treads Light Treads Leg Aluminum Leg Hover Unit Cooled Gravmag System Flight Unit VTOL Module Utility Advanced Melee Analysis Suite Device Structural Scanner Storage Small Storage Unit Processor Advanced Melee Analysis Suite Hackware Advanced Hacking Suite Protection Improved Medium Armor Plating Weapon Phasing Sabre Energy Gun Spread Laser Ballistic Gun Assault Rifle Launcher Grenade Launcher Special Weapon Improved Remote Datajack Impact Weapon Heavy Flail Slashing Weapon Phasing Sabre Piercing Weapon Spear Build | -11 -10 -10 -10 -9 -8 -7 -6 -6 -6 -6 -5 -5 -5 -4 -3 ------- Run | Yrd Mat Min Exi Min Mat Fac Fac Low Low Dat Pro Fac Ext Fac Res Slots Evolved 14 | . . . . . 4 2 2 . . . . 2 . 2 2 Power 1 | . . . . . . . 1 . . . . . . . . Propulsion 5 | . . . . . 2 1 . . . . . 1 . . 1 Utility 8 | . . . . . 2 1 1 . . . . 1 . 2 1 Weapon . | . . . . . . . . . . . . . . . . Parts Attached 115 | . 5 4 1 . 10 17 9 . . . . 18 29 11 11 Power 16 | . 1 . . . 1 . 3 . . . . 4 6 . 1 Engine 10 | . 1 . . . 1 . 1 . . . . 2 5 . . Core 5 | . . . . . . . 2 . . . . 2 1 . . Reactor 1 | . . . . . . . . . . . . . . . 1 Propulsion 37 | . . 2 . . 5 5 3 . . . . 7 5 4 6 Treads 3 | . . 2 . . 1 . . . . . . . . . . Leg . | . . . . . . . . . . . . . . . . Wheel . | . . . . . . . . . . . . . . . . Hover 16 | . . . . . . . . . . . . 7 5 4 . Flight 18 | . . . . . 4 5 3 . . . . . . . 6 Utility 34 | . 1 1 1 . . 6 3 . . . . 7 8 6 1 Device 8 | . 1 . . . . 3 . . . . . 1 1 2 . Storage 2 | . . 1 1 . . . . . . . . . . . . Processor 12 | . . . . . . 2 3 . . . . 3 2 2 . Hackware 2 | . . . . . . . . . . . . . 1 1 . Protection 10 | . . . . . . 1 . . . . . 3 4 1 1 Artifact . | . . . . . . . . . . . . . . . . Weapon 28 | . 3 1 . . 4 6 . . . . . . 10 1 3 Energy Gun 5 | . . . . . 4 1 . . . . . . . . . Energy Cannon . | . . . . . . . . . . . . . . . . Ballistic Gun 2 | . 2 . . . . . . . . . . . . . . Ballistic Cannon . | . . . . . . . . . . . . . . . . Launcher 4 | . 1 1 . . . 1 . . . . . . . . 1 Special Weapon 2 | . . . . . . . . . . . . . 2 . . Impact Weapon 1 | . . . . . . 1 . . . . . . . . . Slashing Weapon 10 | . . . . . . 1 . . . . . . 6 1 2 Piercing Weapon 4 | . . . . . . 2 . . . . . . 2 . . Special Melee Weapon . | . . . . . . . . . . . . . . . . Unidentified Prototypes 6 | . . . . . 1 1 . . . . . 2 . . 2 Parts Lost 58 | . 1 . . . 10 8 4 1 . . 3 4 3 10 14 Power 9 | . . . . . 1 1 1 . . . 1 2 1 1 1 Propulsion 26 | . . . . . 4 4 3 1 . . 2 1 1 4 6 Utility 13 | . . . . . 1 2 . . . . . . . 4 6 Weapon 10 | . 1 . . . 4 1 . . . . . 1 1 1 1 Highest Loss Streak 9 | . 1 . . . 9 6 2 1 . . 2 2 1 9 8 To Critical Strikes 1 | . . . . . . . . . . . . . . 1 . Average Slot Usage (%) 75 | . 93 96 100 87 58 48 91 63 53 53 42 52 91 94 28 Engine 5 | . 14 14 14 2 1 3 . . . . . . 5 5 . Core 2 | . . . . . . . 9 6 6 6 . 2 3 4 . Treads 7 | . . 16 28 28 23 . . . . . . . . . . Leg 2 | . 28 11 . . . . . . . . . . . . . Hover 8 | . . . . . . . . . . . . 15 27 28 1 Flight 4 | . . . . . . 15 29 18 13 13 9 . . . 3 Device 6 | . 9 14 14 14 8 6 5 . . . . 1 5 8 . Storage 4 | . 14 14 14 14 8 . . . . . . . . . . Processor 13 | . . . . . . 11 24 26 26 26 26 23 23 22 17 Hackware 1 | . . . . . . . . . . . . . 3 7 1 Protection 2 | . . . . . . 3 6 4 . . . 1 4 5 . Energy Gun 1 | . 2 . . . 7 3 . . . . . . . . . Ballistic Gun 4 | . 23 14 14 14 2 . . . . . . . . . . Launcher 3 | . . 11 14 14 5 . . . . . . . . . . Slashing Weapon 2 | . . . . . . 1 . . . . . . 8 10 1 Piercing Weapon 2 | . . . . . . 1 12 6 6 6 6 5 1 . . Peak Build Rating 104 | . 7 7 11 11 13 31 52 37 33 32 32 72 91 104 64 Average Rating 36 | . 6 6 9 10 9 19 45 36 32 32 27 41 82 97 37 On Entrance 28 | 6 6 6 7 11 10 7 31 37 33 32 32 22 70 86 64 Naked Turns . | . . . . . . . . . . . . . . . . Heaviest Build 51 | 14 14 21 51 51 50 10 20 12 7 7 7 24 39 43 17 Greatest Support 69 | 20 20 20 40 40 60 27 22 14 10 10 10 66 67 69 25 Greatest Overweight (x) 15 | . . 1 2 1 15 1 1 . . . . 4 . . 2 Average Overweight (x) . | . . . 1 1 . . . . . . . . . . . Largest Inventory Capacity 20 | . 8 10 20 20 20 5 5 5 5 5 5 5 5 5 5 Average Capacity 7 | . 8 8 11 20 19 5 5 5 5 5 5 5 5 5 5 Most Carried 13 | . 8 8 10 10 13 4 5 5 5 4 4 5 5 5 5 Average Carried 5 | . 7 6 8 10 9 3 4 5 4 4 4 4 4 4 3 Final Capacity 20 | 8 8 10 20 20 5 5 5 5 5 5 5 5 5 5 5 Final Carried 10 | 6 8 7 10 10 5 4 5 5 4 4 4 5 5 4 3 Class Distribution -------------------- 48% | Mutant 15% | Scavenger-Gladiator 15% | Sprinter 6% | Scavenger-Mutant 6% | Scavenger-Scout 5% | Scavenger-Sprinter Dominant Class ---------------- Mutant | -10/Materials Mutant | -10/Mines Mutant | -10/Exiles Mutant | -9/Mines Mutant | -8/Materials Sprinter | -7/Factory Scavenger-Sprinter | -6/Factory Sprinter | -6/Lower Caves Sprinter | -6/Lower Caves Sprinter | -6/Data Miner Sprinter | -5/Proximity Caves Scavenger-Mutant | -5/Factory Scavenger-Gladiator | -5/Extension Scavenger-Scout | -4/Factory Sprinter | -3/Research Resources | -11 -10 -10 -10 -9 -8 -7 -6 -6 -6 -6 -5 -5 -5 -4 -3 ----------- Run | Yrd Mat Min Exi Min Mat Fac Fac Low Low Dat Pro Fac Ext Fac Res Matter Collected 1439 | 200 98 122 . 45 30 110 159 . . . . 197 383 95 . Remotely . | . . . . . . . . . . . . . . . . Salvage Created 3925 | . 147 78 . 69 93 374 360 131 . . . 803 1569 266 35 Parts 193 | . 18 3 . 3 3 19 15 3 . . . 40 68 17 4 Haulers Intercepted 8 | . . . . . 1 3 . . . . . 1 2 1 . Recyclers Shooed 1 | . . . . . . . . . . . . . . . 1 Parts Field Recycled . | . . . . . . . . . . . . . . . . Retrieved Matter . | . . . . . . . . . . . . . . . . Parts Self-Destructed 1 | . . . . . . . . 1 . . . . . . . Prevented . | . . . . . . . . . . . . . . . . Kills | -11 -10 -10 -10 -9 -8 -7 -6 -6 -6 -6 -5 -5 -5 -4 -3 ------- Run | Yrd Mat Min Exi Min Mat Fac Fac Low Low Dat Pro Fac Ext Fac Res Combat Hostiles Destroyed 46 | . 5 2 . 2 4 5 4 . . . . 4 19 . 1 Melee 30 | . . . . . . 3 4 . . . . 4 19 . . Guns 8 | . 2 . . 1 4 1 . . . . . . . . . AOE 7 | . 3 2 . 1 . . . . . . . . . . 1 Classes Destroyed 15 | . 4 . . . 3 1 1 . . . . 5 1 . . Worker 1 | . . . . . . . . . . . . 1 . . . Builder 5 | . 2 . . . . . . . . . . . 2 1 . Hauler 8 | . . . . . 1 3 . . . . . 1 2 1 . Recycler 6 | . . . . . . . 2 . . . . 3 1 . . Operator 3 | . 1 . . . . 1 1 . . . . . . . . Watcher 7 | . . . . . . . . . . . . 2 1 3 1 Swarmer 11 | . 3 . . . . 3 4 . . . . . . . 1 Cutter 1 | . . . . . 1 . . . . . . . . . . Grunt 21 | . 2 2 . 2 2 1 . . . . . . 12 . . Duelist 1 | . . . . . . . . . . . . . 1 . . Protector 1 | . . . . . . 1 . . . . . . . . . Sentry 4 | . . . . . . . . . . . . 1 3 . . Hunter 1 | . . . . . . . . . . . . 1 . . . Programmer 2 | . . . . . . . . . . . . 2 . . . Heavy 1 | . . . . . 1 . . . . . . . . . . Thug 1 | . . . . . . . . . . . . . 1 . . Butcher 1 | . . . . . . . . . . . . . 1 . . Guerrilla 1 | . . . . . . . . . . . . . 1 . . Best Kill Streak 6 | . 3 2 . 2 3 3 5 . . . . 3 6 3 2 Combat Bots Only 6 | . 3 2 . 2 3 2 4 . . . . 2 6 . 1 Max Kills in Single Turn 2 | . 2 2 . 1 1 1 1 . . . . 1 1 1 1 Gunslinging . | . . . . . . . . . . . . . . . . Exploded 2 | . 2 2 . 1 . . . . . . . . . . 1 Melee 1 | . . . . . . 1 1 . . . . 1 1 . . Uniques/NPCs Destroyed . | . . . . . . . . . . . . . . . . Combat | -11 -10 -10 -10 -9 -8 -7 -6 -6 -6 -6 -5 -5 -5 -4 -3 -------- Run | Yrd Mat Min Exi Min Mat Fac Fac Low Low Dat Pro Fac Ext Fac Res Hostile Shots Fired 748 | . 31 . . 12 71 99 84 11 3 . 57 46 73 58 203 Missed 321 | . 7 . . 2 18 35 39 10 . . 37 17 25 27 104 Damage Taken 8052 | . 326 . . 142 1039 1081 587 15 40 . 266 569 1074 746 2167 Core 3297 | . 53 . . 31 411 657 123 . 17 . 203 132 276 90 1304 Absorbed by Shields . | . . . . . . . . . . . . . . . . Redirected to Shielding 18 | . . . . . . . . . . . . . 18 . . Core Remaining (%) 58 | 100 . . . 66 25 6 . . . . 59 . 59 92 . Volleys Fired 79 | . 22 1 . 5 32 7 . . . . . . 10 . 2 Largest 2 | . 2 2 . 2 2 2 . . . . . . 1 . 1 Hottest 130 | . 70 50 . 50 130 85 . . . . . . 7 . 39 Shots Fired 121 | . 44 2 . 7 43 13 . . . . . . 10 . 2 Gun 102 | . 41 1 . 5 43 12 . . . . . . . . . Cannon . | . . . . . . . . . . . . . . . . Launcher 9 | . 3 1 . 2 . 1 . . . . . . . . 2 Special 10 | . . . . . . . . . . . . . 10 . . Kinetic 44 | . 38 1 . 5 . . . . . . . . . . . Thermal 50 | . . . . . 43 7 . . . . . . . . . Explosive 9 | . 3 1 . 2 . 1 . . . . . . . . 2 Electromagnetic 8 | . 3 . . . . 5 . . . . . . . . . Robot Hit Streak 15 | . 5 1 . 1 15 6 . . . . . . 10 . 12 Robot Miss Streak 5 | . 2 1 . 2 5 1 . . . . . . . . . Penetration Max . | . . . . . . . . . . . . . . . . Secondary Targets . | . . . . . . . . . . . . . . . . Shots Hit Robots 234 | . 23 1 . 2 42 23 13 3 . . . 27 80 18 2 Core Hits 144 | . 14 4 . 5 53 9 6 2 . . . 13 27 4 7 Critical Kills 2 | . 2 . . . . . . . . . . . . . . Critical Parts Destroyed . | . . . . . . . . . . . . . . . . Critical Strikes 15 | . 2 . . . . 1 3 . . . . 1 7 1 . Destroy 2 | . 2 . . . . . . . . . . . . . . Sever 9 | . . . . . . 1 . . . . . . 7 1 . Impale 4 | . . . . . . . 3 . . . . 1 . . . Melee Attacks 175 | . . . . . . 21 16 3 . . . 35 77 22 1 Impact 10 | . . . . . . 10 . . . . . . . . . Slashing 104 | . . . . . . 11 . . . . . . 70 22 1 Piercing 61 | . . . . . . . 16 3 . . . 35 7 . . Sneak Attacks 35 | . . . . . . 5 3 . . . . 8 15 4 . Combat Hostiles 4 | . . . . . . 1 . . . . . . 3 . . Follow-up Attacks 10 | . . . . . . . 1 . . . . . 7 2 . Damage Inflicted 10018 | . 387 123 . 138 644 1089 593 236 . . . 1399 4044 1091 274 Guns 1017 | . 231 . . 10 643 133 . . . . . . . . . Cannons . | . . . . . . . . . . . . . . . . Explosions 645 | . 156 123 . 128 . . . . . . . . . . 238 Melee 8302 | . . . . . . 939 593 236 . . . 1399 4044 1091 . Ramming 54 | . . . . . 1 17 . . . . . . . . 36 Kinetic 241 | . 231 . . 10 . . . . . . . . . . . Thermal 671 | . . . . . 643 28 . . . . . . . . . Explosive 645 | . 156 123 . 128 . . . . . . . . . . 238 Electromagnetic 105 | . . . . . . 105 . . . . . . . . . Impact 315 | . . . . . . 315 . . . . . . . . . Slashing 5543 | . . . . . . 624 . . . . . . 3828 1091 . Piercing 2444 | . . . . . . . 593 236 . . . 1399 216 . . Highest Corruption 9 | . 3 3 3 3 . 1 1 . . . 1 4 4 3 9 Average Corruption 3 | . 2 3 3 3 . 1 1 . . . 1 3 4 2 5 Corruption Purged 1 | . . . . . . . 1 . . . . . . . . Corruption Blocked . | . . . . . . . . . . . . . . . . Effects 55 | . 1 5 11 1 . . . . . . 2 3 20 1 11 Message Errors 10 | . . . 3 . . . . . . . 1 . 5 . 1 Matter Fused 14 | . . 2 . . . . . . . . 1 1 5 . 5 Heat Flow Errors 11 | . 1 2 3 . . . . . . . . 1 3 . 1 Energy Discharges 8 | . . 1 1 . . . . . . . . . 5 . 1 Parts Rejected 2 | . . . . 1 . . . . . . . . . . 1 Data Loss (minor) 6 | . . . 3 . . . . . . . . . 2 . 1 Data Loss (major) 3 | . . . 1 . . . . . . . . 1 . 1 . Alerts 1 | . . . . . . . . . . . . . . . 1 Overload Shots . | . . . . . . . . . . . . . . . . Overflow Damage 930 | . 13 . . . . 75 87 34 . . . 230 426 65 . Projectiles . | . . . . . . . . . . . . . . . . Explosions 13 | . 13 . . . . . . . . . . . . . . Melee 917 | . . . . . . 75 87 34 . . . 230 426 65 . Knockbacks 1 | . . . . . . . . . . . . . . . 1 Impact 1 | . . . . . . . . . . . . . . . 1 Kinetic . | . . . . . . . . . . . . . . . . Secondary . | . . . . . . . . . . . . . . . . Self-Inflicted Damage 133 | . . . . 19 . 99 . . . . . . . . 15 Shots 4 | . . . . 2 . 2 . . . . . . . . . Rammed 19 | . . 1 . . 1 4 . . . . . . . . 13 Targets Rammed 19 | . . 1 . . 1 4 . . . . . . . . 13 Kicked . | . . . . . . . . . . . . . . . . Crushed . | . . . . . . . . . . . . . . . . Highest Temperature 459 | . 115 192 268 6 459 88 310 . . . . 135 244 54 95 Average Temperature 102 | . 19 84 104 6 148 42 138 . . . . 73 102 22 55 Received Heat Transfer 1443 | . 102 . . 69 342 126 75 . . . 9 9 357 84 270 Effects 9 | . . . . . 8 . 1 . . . . . . . . Shutdowns 1 | . . . . . 1 . . . . . . . . . . Energy Bleed 2 | . . . . . 1 . 1 . . . . . . . . Interference 1 | . . . . . 1 . . . . . . . . . . Damage (minor) 1 | . . . . . 1 . . . . . . . . . . Damage (major) 4 | . . . . . 4 . . . . . . . . . . Siege Activations . | . . . . . . . . . . . . . . . . Robots Corrupted 1 | . . . . . . 1 . . . . . . . . . Combat Hostiles 1 | . . . . . . 1 . . . . . . . . . Parts Fried . | . . . . . . . . . . . . . . . . Impact Corruptions 3 | . . . . . . 3 . . . . . . . . . Robots Melted . | . . . . . . . . . . . . . . . . Combat Hostiles . | . . . . . . . . . . . . . . . . Parts Melted 2 | . . . . . . . . . . . . 2 . . . Heat Transferred 916 | . . . . . 805 111 . . . . . . . . . Parts Sabotaged . | . . . . . . . . . . . . . . . . Parts Stolen 1 | . . . . . . . . . 1 . . . . . . Parts Stripped . | . . . . . . . . . . . . . . . . Power Chain Reactions 1 | . . . . . . . . . . . . . . . 1 Alert | -11 -10 -10 -10 -9 -8 -7 -6 -6 -6 -6 -5 -5 -5 -4 -3 ------- Run | Yrd Mat Min Exi Min Mat Fac Fac Low Low Dat Pro Fac Ext Fac Res Peak Influence 617 | . 152 66 . 66 130 617 436 . . . . 249 541 195 591 Initial 186 | . . 8 . . 25 49 130 . . . . 109 121 186 74 Average 169 | . 70 43 . 56 41 284 221 . . . . 135 309 73 263 Maximum Alert Level 2 | . . . . . . 2 2 . . . . 1 2 . 2 Low Security (%) 62 | . 100 100 . 100 100 40 18 . . . . 77 12 100 40 Level 1 26 | . . . . . . 21 78 . . . . 22 59 . 34 Level 2 11 | . . . . . . 38 3 . . . . . 27 . 24 Level 3 . | . . . . . . . . . . . . . . . . Level 4 . | . . . . . . . . . . . . . . . . Level 5 . | . . . . . . . . . . . . . . . . High Security . | . . . . . . . . . . . . . . . . Max Security . | . . . . . . . . . . . . . . . . Squads Dispatched 24 | . 1 . . . 3 8 1 . . . . 3 2 1 5 Investigation 8 | . . . . . . 3 . . . . . 1 2 . 2 Extermination 3 | . . . . . . 1 1 . . . . . . 1 . Reinforcement 12 | . 1 . . . 3 4 . . . . . 1 . . 3 Assault 1 | . . . . . . . . . . . . 1 . . . Garrison . | . . . . . . . . . . . . . . . . Intercept . | . . . . . . . . . . . . . . . . Searches Triggered 3 | . . . . . . 1 1 . . . . . . . 1 Data Miner Redirects 3 | . . . . . . . . . . . . 1 1 . 1 Construction Impeded . | . . . . . . . . . . . . . . . . Haulers Reinforced 5 | . . . . . . 2 . . . . . 1 . . 2 Active Scanning Responses . | . . . . . . . . . . . . . . . . Cargo Convoy Interrupts . | . . . . . . . . . . . . . . . . Stealth | -11 -10 -10 -10 -9 -8 -7 -6 -6 -6 -6 -5 -5 -5 -4 -3 --------- Run | Yrd Mat Min Exi Min Mat Fac Fac Low Low Dat Pro Fac Ext Fac Res Distress Signals 10 | . . 1 . . 2 2 2 . . . . 1 1 . 1 Communications Jammed . | . . . . . . . . . . . . . . . . Distress Signals . | . . . . . . . . . . . . . . . . Times Spotted 254 | . 8 2 . 2 16 38 32 10 6 . 14 9 39 21 57 Peak Tracking Total 18 | . 3 2 . 2 8 13 18 10 6 . 7 2 12 12 17 Tactical Retreats 43 | . . . . . 3 7 3 3 . . 6 1 4 3 13 Traps | -11 -10 -10 -10 -9 -8 -7 -6 -6 -6 -6 -5 -5 -5 -4 -3 ------- Run | Yrd Mat Min Exi Min Mat Fac Fac Low Low Dat Pro Fac Ext Fac Res Traps Triggered 7 | . 3 . . . . . . . . . . . 3 . 1 Indirectly . | . . . . . . . . . . . . . . . . Trap Hack Attempts . | . . . . . . . . . . . . . . . . Triggered . | . . . . . . . . . . . . . . . . Disarmed . | . . . . . . . . . . . . . . . . Reprogrammed . | . . . . . . . . . . . . . . . . Reused . | . . . . . . . . . . . . . . . . Traps Extracted . | . . . . . . . . . . . . . . . . Installed . | . . . . . . . . . . . . . . . . Triggered 1 | . . . . . . . . 1 . . . . . . . Machines | -11 -10 -10 -10 -9 -8 -7 -6 -6 -6 -6 -5 -5 -5 -4 -3 ---------- Run | Yrd Mat Min Exi Min Mat Fac Fac Low Low Dat Pro Fac Ext Fac Res Machines Disabled 2 | . . . . . . 1 . . . . . 1 . . . Max in Single Turn 1 | . . . . . . 1 . . . . . 1 . . . Garrison Access 2 | . . . . . . . . . . . . 2 . . . Machines Repaired . | . . . . . . . . . . . . . . . . Machines Dismantled . | . . . . . . . . . . . . . . . . Machines Sabotaged . | . . . . . . . . . . . . . . . . Overloaded Fab Kills 1 | . . . . . . . . . . . . . . . 1 Hacking | -11 -10 -10 -10 -9 -8 -7 -6 -6 -6 -6 -5 -5 -5 -4 -3 --------- Run | Yrd Mat Min Exi Min Mat Fac Fac Low Low Dat Pro Fac Ext Fac Res Machines Accessed 35 | . 4 . 1 . 1 5 4 . . 4 . 4 5 4 3 Terminals 18 | . 4 . . . 1 1 2 . . . . 1 5 3 1 Fabricators 7 | . . . . . . 2 2 . . . . 1 . 1 1 Repair Stations 2 | . . . . . . 2 . . . . . . . . . Recycling Units . | . . . . . . . . . . . . . . . . Scanalyzers . | . . . . . . . . . . . . . . . . Garrison Access 3 | . . . . . . . . . . . . 2 . . 1 Total Hacks 101 | . 14 . 1 . 4 13 4 . . 29 . 6 15 11 4 Successful 60 | . 5 . 1 . 2 2 4 . . 29 . 2 6 8 1 Failed 41 | . 9 . . . 2 11 . . . . . 4 9 3 3 Catastrophic 4 | . . . . . . . . . . . . 2 . 2 . Database Lockouts . | . . . . . . . . . . . . . . . . Manual 25 | . 9 . 1 . 4 3 2 . . . . 1 . 4 1 Terminals 49 | . 14 . . . 4 2 2 . . . . 1 15 10 1 Fabricators 12 | . . . . . . 6 2 . . . . 1 . 1 2 Repair Stations 5 | . . . . . . 5 . . . . . . . . . Recycling Units . | . . . . . . . . . . . . . . . . Scanalyzers . | . . . . . . . . . . . . . . . . Garrison Access 5 | . . . . . . . . . . . . 4 . . 1 Terminal Hacks 43 | . 2 . 1 . . . 1 . . 29 . . 6 4 . Record 11 | . . . . . . . . . . 11 . . . . . Part Schematic 9 | . . . . . . . . . . 9 . . . . . Robot Schematic 6 | . . . . . . . . . . 6 . . . . . Prototype ID Bank 3 | . . . . . . . . . . 3 . . . . . Open DSF 1 | . . . . . . . 1 . . . . . . . . Alert Level 1 | . . . . . . . . . . . . . . 1 . Unreport Threat 5 | . 1 . . . . . . . . . . . 2 2 . Locate Traps 3 | . 1 . . . . . . . . . . . 1 1 . Recall Reinforcements 1 | . . . . . . . . . . . . . 1 . . Zone Layout 2 | . . . . . . . . . . . . . 2 . . Derelict Proto ID Bank 1 | . . . 1 . . . . . . . . . . . . Fabricator Hacks 4 | . . . . . . . 2 . . . . 1 . 1 . Network Status 1 | . . . . . . . 1 . . . . . . . . Build 3 | . . . . . . . 1 . . . . 1 . 1 . Repair Station Hacks 1 | . . . . . . 1 . . . . . . . . . Refit 1 | . . . . . . 1 . . . . . . . . . Recycling Unit Hacks . | . . . . . . . . . . . . . . . . Scanalyzer . | . . . . . . . . . . . . . . . . Garrison Access Hacks 1 | . . . . . . . . . . . . 1 . . . Seal Access 1 | . . . . . . . . . . . . 1 . . . Unauthorized Hacks 11 | . 3 . . . 2 1 1 . . . . . . 3 1 Terminals 10 | . 3 . . . 2 1 1 . . . . . . 3 . Assimilate 1 | . . . . . . 1 . . . . . . . . . Botnet 3 | . . . . . 1 . 1 . . . . . . 1 . Skim 6 | . 3 . . . 1 . . . . . . . . 2 . Fabricators 1 | . . . . . . . . . . . . . . . 1 Overload 1 | . . . . . . . . . . . . . . . 1 Repair Stations . | . . . . . . . . . . . . . . . . Recycling Units . | . . . . . . . . . . . . . . . . Scanalyzers . | . . . . . . . . . . . . . . . . Garrison Access . | . . . . . . . . . . . . . . . . Data Cores Recovered 1 | . . . . . . . 1 . . . . . . . . Used . | . . . . . . . . . . . . . . . . Hacking Detections 23 | . 4 . . . 1 4 1 . . . . 2 5 3 3 Full Trace Events 6 | . 1 . . . . 3 . . . . . 1 1 . . Feedback Events . | . . . . . . . . . . . . . . . . Feedback Blocked . | . . . . . . . . . . . . . . . . Robot Schematics Acquired 6 | . . . . . . . . . . 6 . . . . . Robots Built 5 | . . . . . . . 1 . . . . 1 . 3 . Authchips . | . . . . . . . . . . . . . . . . Time 352 | . . . . . . . 116 . . . . 152 . 84 . Total Robot Build Rating 26 | . . . . . . . 3 . . . . 5 . 18 . Part Schematics Acquired 9 | . . . . . . . . . . 9 . . . . . Parts Built . | . . . . . . . . . . . . . . . . Authchips . | . . . . . . . . . . . . . . . . Time . | . . . . . . . . . . . . . . . . Total Part Build Rating . | . . . . . . . . . . . . . . . . Parts Repaired . | . . . . . . . . . . . . . . . . Time . | . . . . . . . . . . . . . . . . Parts Recycled . | . . . . . . . . . . . . . . . . Recycled Matter . | . . . . . . . . . . . . . . . . Retrieved Matter . | . . . . . . . . . . . . . . . . Retrieved Components . | . . . . . . . . . . . . . . . . Parts Scanalyzed . | . . . . . . . . . . . . . . . . Part Schematics Acquired . | . . . . . . . . . . . . . . . . Parts Damaged . | . . . . . . . . . . . . . . . . Bothacking | -11 -10 -10 -10 -9 -8 -7 -6 -6 -6 -6 -5 -5 -5 -4 -3 ------------ Run | Yrd Mat Min Exi Min Mat Fac Fac Low Low Dat Pro Fac Ext Fac Res Used RIF Installer . | . . . . . . . . . . . . . . . . Robots Hacked . | . . . . . . . . . . . . . . . . Non-combat . | . . . . . . . . . . . . . . . . Combat . | . . . . . . . . . . . . . . . . Robot Hacks Applied . | . . . . . . . . . . . . . . . . Relay Couplers Released 1 | . . . . . . . . . . . . 1 . . . Machine Destruction 1 | . . . . . . . . . . . . 1 . . . Fabnet Peak Effective % . | . . . . . . . . . . . . . . . . Robots Rewired 6 | . . . . . . . . . . . . . 6 . . Allies Hacked . | . . . . . . . . . . . . . . . . Hacks Repelled . | . . . . . . . . . . . . . . . . Allies | -11 -10 -10 -10 -9 -8 -7 -6 -6 -6 -6 -5 -5 -5 -4 -3 -------- Run | Yrd Mat Min Exi Min Mat Fac Fac Low Low Dat Pro Fac Ext Fac Res Total Allies 15 | . . . . . . 1 1 . . . . 1 9 3 . Largest Group 9 | . . . . . . 1 1 . . . . 1 9 3 . Highest-Rated Group 352 | . . . . . . 26 23 . . . . 23 352 90 . Highest-Rated Ally 159 | . . . . . . 26 23 . . . . 23 159 30 . Total Orders 1 | . . . . . . 1 . . . . . . . . . FOLLOW 1 | . . . . . . 1 . . . . . . . . . Ally Attacks 72 | . . . . . . . . . . . . . 72 . . Total Damage 1658 | . . . . . . . . . . . . . 1658 . . Kills 9 | . . . . . . . . . . . . . 9 . . Allies Corrupted . | . . . . . . . . . . . . . . . . Allies Melted . | . . . . . . . . . . . . . . . . Intel | -11 -10 -10 -10 -9 -8 -7 -6 -6 -6 -6 -5 -5 -5 -4 -3 ------- Run | Yrd Mat Min Exi Min Mat Fac Fac Low Low Dat Pro Fac Ext Fac Res Robot Analysis Total . | . . . . . . . . . . . . . . . . Derelict Logs Recovered 6 | . . 1 . 1 . . . 1 1 . 2 . . . . Drone Launches . | . . . . . . . . . . . . . . . . Drone Recoveries . | . . . . . . . . . . . . . . . . Exploration | -11 -10 -10 -10 -9 -8 -7 -6 -6 -6 -6 -5 -5 -5 -4 -3 ------------- Run | Yrd Mat Min Exi Min Mat Fac Fac Low Low Dat Pro Fac Ext Fac Res Turns Passed 5582 | . 387 467 631 65 547 417 365 183 53 26 178 631 920 342 370 Spaces Moved 6561 | 1 233 307 256 23 293 727 439 576 164 81 516 742 891 428 884 Core 634 | . . . . . 1 176 . . . . 58 335 . . 64 Treads 672 | . . 146 256 23 247 . . . . . . . . . . Legs 395 | 1 233 161 . . . . . . . . . . . . . Wheels . | . . . . . . . . . . . . . . . . Hover 1827 | . . . . . . . . . . . . 407 891 428 101 Flight 3033 | . . . . . 45 551 439 576 164 81 458 . . . 719 Fastest Speed 23 | 120 120 120 240 240 32 26 23 29 32 32 32 35 38 40 30 Average Speed 59 | 120 120 146 245 240 146 35 30 29 32 32 34 46 42 43 37 Slowest Speed 800 | 120 120 240 320 240 800 115 104 32 32 32 50 250 48 61 150 Overloaded Moves . | . . . . . . . . . . . . . . . . Propulsion Burnouts . | . . . . . . . . . . . . . . . . Robots Hopped 26 | . . . . . 2 . 3 . . . . . . . 21 Cave-ins Triggered . | . . . . . . . . . . . . . . . . Exploration Rate (%) 39 | 2 42 71 61 11 29 31 14 69 42 70 75 17 56 14 31 Regions Visited 15 Branch Regions 8 Pre-discovered Areas 1 | . . . . . . . . . . 1 . . . . . Known Exits Taken 8 | . . . . . . . 1 1 1 1 1 1 1 1 . Unknown Exits Taken 7 | 1 1 1 1 1 1 1 . . . . . . . . . Scrap Searched 12 | . . 2 . . . . . 9 . . 1 . . . . Spaces Dug 12 | . . . . . . 3 1 . . . . 5 . 2 1 Terrain Destroyed 86 | . 15 8 . 19 . 4 1 . . . . 5 . 2 32 Melee 12 | . . . . . . 3 1 . . . . 5 . 2 1 Projectile . | . . . . . . . . . . . . . . . . AOE 74 | . 15 8 . 19 . 1 . . . . . . . . 31 Terrain Rammed . | . . . . . . . . . . . . . . . . Walls Destroyed . | . . . . . . . . . . . . . . . . Machines Disabled . | . . . . . . . . . . . . . . . . Actions | -11 -10 -10 -10 -9 -8 -7 -6 -6 -6 -6 -5 -5 -5 -4 -3 --------- Run | Yrd Mat Min Exi Min Mat Fac Fac Low Low Dat Pro Fac Ext Fac Res Total 7843 | . 299 322 262 27 365 844 640 584 163 80 515 969 1320 554 899 Wait 859 | . 35 5 . . 17 62 175 5 . . . 166 301 93 . Move 6497 | . 232 306 255 22 288 726 433 575 163 80 515 741 890 427 844 Hop 23 | . . . . . 2 . 2 . . . . . . . 19 Pick Up 27 | . 2 2 3 . 9 1 2 . . . . 2 4 . 2 Fast Attach 72 | . 2 . . . 2 14 9 . . . . 17 18 4 6 Attach 26 | . 1 3 . . 8 3 . . . . . 1 2 3 5 Detach 8 | . 1 . . . . 1 . . . . . 1 1 1 3 Swap 18 | . 2 1 1 . . . . . . . . 1 9 4 . Drop 49 | . 2 3 3 . 6 5 5 1 . . . 5 12 3 4 Fire 79 | . 22 1 . 5 32 7 . . . . . . 10 . 2 Melee 159 | . . . . . . 21 14 3 . . . 35 66 19 1 Ram 17 | . . . . . . 4 . . . . . . . . 13 Kick . | . . . . . . . . . . . . . . . . Crush 2 | . . 1 . . 1 . . . . . . . . . . Escape Stasis 7 | . . . . . . . . . . . . . 7 . . Rewire . | . . . . . . . . . . . . . . . . Trap . | . . . . . . . . . . . . . . . . Miscellaneous . | . . . . . . . . . . . . . . . . Route ------- -11/Scrapyard -10/Materials (discovered 2 exits: [*Mat] / [*Min]) -10/Mines -10/Exiles -9/Mines -8/Materials -7/Factory -6/Factory -6/Lower Caves -6/Lower Caves (discovered 2 exits: *Fac / *Dat) -6/Data Miner -5/Proximity Caves -5/Factory (discovered 2 exits: Upp / *Ext) -5/Extension -4/Factory -3/Research History --------- Turn | Location | Event 1 | -11/Scrapyard | Discovered new exit (range 0) 1 | -11/Scrapyard | Entered Materials 225 | -10/Materials | Discovered new exit (range 3) 305 | -10/Materials | Build established: Mutant 374 | -10/Materials | Discovered new exit (range 12) 388 | -10/Materials | Entered Mines 472 | -10/Mines | Learned 2 Materials zone layouts 583 | -10/Mines | Assembled infested the area 843 | -10/Mines | Deemed a non-threat by the Exiles lab entrance 843 | -10/Mines | Discovered new exit (range 6) 855 | -10/Mines | Entered Exiles 913 | -10/Exiles | Met 8R-AWN 954 | -10/Exiles | Met EX-HEX 1026 | -10/Exiles | Met EX-BIN 1052 | -10/Exiles | Aligned with FarCom system 1055 | -10/Exiles | Given EX-Vault access code 1110 | -10/Exiles | Opened EX-Vault 1127 | -10/Exiles | Found Longsword +1 1135 | -10/Exiles | Found AWS/Autocannon 1182 | -10/Exiles | Warned to stay clear of 0b10 Research branches 1247 | -10/Exiles | Met EX-DEC 1467 | -10/Exiles | Discovered new exit (range 10) 1486 | -10/Exiles | Stole two prototypes: AWS/Autocannon, Longsword +1 1486 | -10/Exiles | Entered Mines 1530 | -9/Mines | Discovered new exit (range 10) 1539 | -9/Mines | Learned Materials emergency access door positions 1551 | -9/Mines | Entered Materials 1551 | -8/Materials | Evolved 4 slots: Propulsion x2, Utility x2 2073 | -8/Materials | Core integrity fell below 50% 2094 | -8/Materials | Discovered new exit (range 12) 2098 | -8/Materials | Entered Factory 2098 | -7/Factory | Evolved 2 slots: Propulsion x1, Utility x1 2100 | -7/Factory | FarCom data flow suspended 2114 | -7/Factory | Lost 9 parts (1p4n1u3w) 2358 | -7/Factory | Core integrity fell below 50% 2401 | -7/Factory | Core integrity fell below 20% 2406 | -7/Factory | Lost 6 parts (1p2n2u1w) 2498 | -7/Factory | Search patrols dispatched 2513 | -7/Factory | Discovered new exit (range 8) 2515 | -7/Factory | Entered another Factory area 2515 | -6/Factory | Evolved 2 slots: Power x1, Utility x1 2732 | -6/Factory | Fabricated M-28 Smith (x1) 2865 | -6/Factory | Search patrols dispatched 2878 | -6/Factory | Discovered new exit (range 5) 2880 | -6/Factory | Identified exit to Lower Caves 2880 | -6/Factory | Entered Lower Caves 2881 | -6/Lower Caves | Encountered a Warlord checkpoint 2988 | -6/Lower Caves | Attracted the attention of an 0b10 outpost 3039 | -6/Lower Caves | Learned location of 1 exit from Factory 3060 | -6/Lower Caves | Discovered new exit (range 14) 3063 | -6/Lower Caves | Identified exit to Lower Caves 3063 | -6/Lower Caves | Entered another Lower Caves area 3063 | -6/Lower Caves | Spotted SG-53P(f) 3063 | -6/Lower Caves | Spotted 2A-D8Z(f) 3064 | -6/Lower Caves | Longsword +1 stolen by Master Thief 3064 | -6/Lower Caves | Learned Factory trap positions 3065 | -6/Lower Caves | Encountered a Master Thief 3065 | -6/Lower Caves | Encountered a Master Thief 3065 | -6/Lower Caves | Spotted B2-P7K(f) 3067 | -6/Lower Caves | Encountered a Master Thief 3073 | -6/Lower Caves | Discovered new exit (range 11) 3076 | -6/Lower Caves | Identified exit to Factory 3112 | -6/Lower Caves | Discovered new exit (range 10) 3115 | -6/Lower Caves | Identified exit to Data Miner 3116 | -6/Lower Caves | Entered Data Miner 3116 | -6/Data Miner | Discovered new exit (range 7) 3118 | -6/Data Miner | Identified exit to Proximity Caves 3123 | -6/Data Miner | Met Data Miner 3130 | -6/Data Miner | Learned location of Section 7 (-2) 3130 | -6/Data Miner | Acquired the access code to Warlord's prototype stash 3135 | -6/Data Miner | Received God Mode back door access code from Data Miner 3142 | -6/Data Miner | Entered Proximity Caves 3145 | -5/Proximity Caves | Spotted B-75 Beast 3163 | -5/Proximity Caves | Build established: Sprinter 3207 | -5/Proximity Caves | Learned Factory stockpile data 3304 | -5/Proximity Caves | Learned Factory garrison access intel 3315 | -5/Proximity Caves | Discovered exit to Factory (range 9) 3320 | -5/Proximity Caves | Entered Factory 3320 | -5/Factory | Evolved 2 slots: Propulsion x1, Utility x1 3321 | -5/Factory | Identified exit to Upper Caves 3322 | -5/Factory | Loaded intel: 77 trap records 3324 | -5/Factory | Loaded intel: 4 garrison access locations 3485 | -5/Factory | Fabricated A-15 Conveyor (x1) 3592 | -5/Factory | Build established: Mutant 3819 | -5/Factory | Incoming assault squad redirected 3917 | -5/Factory | Build established: Scavenger-Mutant 3943 | -5/Factory | Discovered new exit (range 10) 3946 | -5/Factory | Identified exit to Extension 3951 | -5/Factory | Entered Extension 4202 | -5/Extension | Incoming investigation squad redirected 4399 | -5/Extension | Rescued A7 4457 | -5/Extension | Rescued a captive Derelict 4457 | -5/Extension | Rescued a captive Derelict 4668 | -5/Extension | Build established: Scavenger-Gladiator 4726 | -5/Extension | Disrupted transfer network 4836 | -5/Extension | Spotted B-75 Beast 4863 | -5/Extension | Allies destroyed B-75 Beast 4864 | -5/Extension | Spotted B-75 Beast 4870 | -5/Extension | Discovered new exit (range 3) 4871 | -5/Extension | Identified exit to Factory 4871 | -5/Extension | Entered Factory 4871 | -4/Factory | Evolved 2 slots: Utility x2 4900 | -4/Factory | Lost 5 allies 5033 | -4/Factory | Fabricated B-60 Warrior (x3) 5205 | -4/Factory | Discovered new exit (range 14) 5212 | -4/Factory | Identified exit to Research 5213 | -4/Factory | Entered Research 5213 | -3/Research | Evolved 2 slots: Propulsion x1, Utility x1 5239 | -3/Research | Lost 9 parts (1p4n3u1w) 5269 | -3/Research | Incoming investigation squad redirected 5325 | -3/Research | Spotted B-86 Titan 5360 | -3/Research | Core integrity fell below 50% 5393 | -3/Research | Lost 8 parts (1p4n2u1w) 5463 | -3/Research | Search patrols dispatched 5532 | -3/Research | Core integrity fell below 20% 5583 | -3/Research | Destroyed by S-43 Plague with Heavy Machine Gun Last Messages --------------- 05558_ System corrupted by crushing effect (+2). 05560_ Slug penetrates Wall. 05560_ Slug penetrates R-10 Processor. 05561_ Slammed into Y-72 Warden. 05562_ Slammed into G-67 Veteran. 05563_ Penetrated by Slug. 05564_ Slammed into G-67 Veteran. 05564_ Destabilizing: Core damaged (-39). 05565_ Slammed into A-15 Conveyor. 05565_ A-15 Conveyor calls for reinforcements. 05565_ ALERT: Hostile activity reported, dispatching reinforcements to area. 05567_ Slammed into U-05 Engineer. 05568_ Slammed into K-01 Serf. 05568_ Adv. Target Analyzer broken. 05568_ Destabilizing: Short circuit. 05571_ C-30 ARC bursts open, deploying its payload. 05571_ S-43 Plague unfolds itself. 05578_ AQ4FHXNI#IKE